bitfinex/quotes_ETHUSD_20251224
["timestamp","ask_amount","ask_price","bid_price","bid_amount"]
[1766550921616,4.22986599,2941.1,2940.7,1.5737]
[1766550922053,7.62996644,2941.1,2940.7,1.5737]
[1766550922220,7.62996644,2941.1,2940.5,1.5757]
[1766550922423,0.76299664,2941.0,2940.5,1.5757]
[1766550923341,3.40031963,2940.9,2940.5,1.5757]
[1766550925054,4.16322085,2941.0,2940.5,1.5757]
[1766550925248,3.53624654,2941.1,2940.5,1.5757]
[1766550927860,0.136138,2941.1,2940.5,1.5757]
[1766550928070,0.136138,2941.1,2940.6,1.60770666]
[1766550928551,3.39989384,2941.3,2940.6,1.60770666]
[1766550928757,5.98876172,2941.3,2940.6,1.60770666]
[1766550929239,0.001,2941.1,2940.6,1.60770666]
[1766550931043,0.001,2941.1,2940.6,1.5737]
[1766550931243,0.001,2941.1,2940.5,0.002]
[1766550931758,0.001,2941.1,2940.5,1.4824]
[1766550932755,0.87197373,2941.1,2940.4,0.002]
[1766550933065,4.99662264,2940.5,2939.4,1.02095857]
[1766550933264,0.68895584,2941.0,2939.8,1.4804]
[1766550933437,1.74977624,2941.1,2940.0,1.4804]
[1766550933759,1.02103502,2940.9,2940.2,1.4804]
[1766550933963,4.42140859,2940.9,2940.4,1.4804]
[1766550934996,3.502e-05,2940.9,2940.6,1.4094]
[1766550935280,3.502e-05,2940.9,2940.8,1.39919905]
[1766550935582,4.1349572,2941.3,2940.8,1.39919905]
[1766550936854,0.7208,2941.2,2940.8,1.39919905]
[1766550937759,0.001,2941.0,2940.8,1.39919905]
[1766550942890,0.001,2941.0,2940.5,1.4094]
[1766550943186,0.001,2941.0,2940.5,0.889]
[1766550943387,0.001,2941.0,2940.6,1.4094]
[1766550943589,0.001,2941.0,2940.6,1.63944]
[1766550950194,0.001,2941.0,2940.6,1.4094]
[1766550950387,3.39990223,2941.3,2940.8,1.4094]
[1766550950587,5.24126285,2941.4,2940.8,1.4094]
[1766550950896,0.001,2941.0,2940.9,1.44340319]
[1766550951265,0.8206,2941.4,2940.9,1.44340319]
[1766550951468,3.39963447,2941.5,2940.9,1.44340319]
[1766550952084,4.23853447,2941.5,2940.9,1.44340319]
[1766550952499,0.8389,2941.4,2940.9,1.4094]
[1766550953600,0.8549,2941.3,2940.9,1.4094]
[1766550953800,0.8549,2941.3,2940.5,1.4094]
[1766550953969,0.8549,2941.3,2940.7,1.4094]
[1766550955001,0.8549,2941.3,2940.7,1.4434055]
[1766550955498,4.25479142,2941.3,2940.7,1.4434055]
[1766550955687,0.8549,2941.3,2940.7,1.4434055]
[1766550956598,0.878,2941.5,2940.8,1.4094]
[1766550956774,0.8856,2941.4,2940.8,1.4094]
[1766550957175,0.8866,2941.4,2940.8,1.4094]
[1766550957579,4.2929572,2941.3,2940.8,1.4094]
[1766550958287,0.8931,2941.3,2940.9,1.44340319]
[1766550959107,0.001,2941.4,2940.9,1.44340319]
[1766550959314,3.40074824,2941.4,2940.9,1.44340319]
[1766550959781,0.001,2941.4,2940.9,1.44340319]
[1766550961707,3.3998572,2941.3,2940.9,1.44340319]
[1766550962010,0.9221,2941.0,2940.4,0.002]
[1766550963303,0.9291,2940.9,2940.4,0.002]
[1766550964308,0.9291,2940.9,2940.5,0.002]
[1766550964620,4.32942513,2940.9,2940.5,0.002]
[1766550964818,0.943,2940.8,2940.5,0.002]
[1766550966919,4.34347478,2940.8,2940.5,0.002]
[1766550970520,3.40047478,2940.8,2940.4,0.002]
[1766550970710,0.9807,2940.7,2940.4,0.002]
[1766550972012,4.17485801,2940.8,2940.4,0.002]
[1766550972412,0.985,2940.7,2940.4,0.002]
[1766550973335,4.38559253,2940.7,2940.4,0.002]
[1766550973835,0.9975,2940.6,2940.4,0.002]
[1766550974633,0.3599786,2940.7,2940.4,0.002]
[1766550976832,3.40036502,2940.9,2940.4,1.4323]
[1766550977129,4.17155728,2941.4,2940.6,1.4303]
[1766550977130,4.4164676,2941.4,2940.6,1.4303]
[1766550977333,4.4164676,2941.4,2940.8,1.4303]
[1766550977520,4.4164676,2941.4,2940.9,1.46430319]
[1766550978039,4.41644464,2941.4,2940.9,1.46430319]
[1766550979034,4.25444464,2941.4,2940.9,1.46430319]
[1766550981637,0.8547,2941.4,2940.9,1.46430319]
[1766550981843,3.39954816,2941.6,2940.9,1.46430319]
[1766550982043,4.28384239,2941.8,2941.0,1.4303]
[1766550982207,4.28384239,2941.8,2941.2,1.4303]
[1766550982413,4.28384239,2941.8,2941.4,1.4303]
[1766550983435,7.68318478,2941.8,2941.4,1.4303]
[1766550984952,4.28384239,2941.8,2941.4,1.4303]
[1766550985248,3.39918044,2941.9,2941.4,1.4303]
[1766550985420,3.39918044,2941.9,2941.5,0.03399626]
[1766550985619,3.39918044,2941.9,2941.6,1.4303]
[1766550986039,0.001,2941.8,2941.6,1.4303]
[1766550986832,0.001,2941.8,2941.0,1.4303]
[1766550987027,0.001,2941.8,2941.2,1.4303]
[1766550988049,1.02168069,2942.0,2941.3,0.889]
[1766550988349,3.40001049,2942.1,2941.7,1.4303]
[1766550989220,8.20682098,2942.1,2941.7,1.4303]
[1766550989417,1.4078,2942.0,2941.4,1.4303]
[1766550990320,6.40713977,2942.0,2941.4,1.4303]
[1766550990558,1.4078,2941.9,2941.4,1.4303]
[1766550991056,3.39994964,2942.1,2941.4,1.4303]
[1766550991239,4.98655413,2942.0,2941.5,0.03399626]
[1766550991728,4.98655413,2942.0,2941.5,1.55419626]
[1766550993246,1.5875,2942.0,2941.5,1.55419626]
[1766550994261,3.39997706,2942.1,2941.5,1.55419626]
[1766550994752,0.001,2942.1,2941.5,1.55419626]
[1766550995056,0.001,2942.1,2941.6,1.5742]
[1766550995248,0.001,2942.1,2941.8,1.5742]
[1766550995727,0.001,2942.1,2941.4,0.03399741]
[1766550995928,1.6205,2942.1,2941.5,1.5742]
[1766550996129,1.6205,2942.1,2941.7,1.5742]
[1766550996329,2.56456024,2942.1,2941.7,1.5742]
[1766550996525,0.001,2942.1,2941.7,1.5742]
[1766550996729,0.001,2942.2,2941.8,1.60819279]
[1766550996932,0.001,2942.2,2941.8,1.5742]
[1766550997280,0.001,2942.2,2942.0,1.5742]
[1766550998167,0.001,2942.3,2942.1,1.60818932]
[1766550998356,1.6205,2942.3,2941.8,2.4632]
[1766550999127,0.001,2942.1,2941.8,2.4632]
[1766550999632,0.001,2942.1,2941.8,1.5742]
[1766551008178,0.001,2942.3,2941.8,1.82052]
[1766551008374,0.001,2942.3,2942.0,1.5742]
[1766551008557,0.001,2942.3,2942.1,1.60818932]
[1766551011477,0.001,2942.3,2942.1,1.5742]
[1766551015398,0.001,2942.3,2941.8,0.24632]
[1766551015700,1.6205,2942.3,2941.9,1.5742]
[1766551015866,1.6205,2942.3,2942.0,0.03399048]
[1766551016194,1.6205,2942.3,2942.0,1.60819048]
[1766551016364,0.001,2942.3,2942.0,1.60819048]
[1766551016764,1.6195,2942.5,2942.0,1.60819048]
[1766551016970,3.39939314,2942.6,2942.0,1.5742]
[1766551017380,0.001,2942.6,2942.1,1.5742]
[1766551020106,0.001,2942.6,2942.3,1.5742]
[1766551020404,5.00945096,2942.8,2942.4,1.60818586]
[1766551020606,8.40760287,2942.8,2942.4,1.5742]
[1766551020794,0.94279364,2942.7,2942.4,1.5742]
[1766551022404,3.39835519,2942.6,2942.4,1.5742]
[1766551022607,4.34207441,2942.7,2942.4,1.5742]
[1766551024906,0.94379364,2942.7,2942.4,1.5742]
[1766551025083,4.33187209,2942.7,2942.4,1.5742]
[1766551025409,5.92597209,2942.7,2942.1,1.7076]
[1766551025608,4.99337282,2942.7,2942.1,1.7076]
[1766551025904,4.99337282,2942.7,2942.2,0.03398817]
[1766551026080,4.99337282,2942.7,2942.2,1.7076]
[1766551026282,4.99337282,2942.7,2942.3,0.03398701]
[1766551027808,1.5951,2942.7,2942.3,1.74158701]
[1766551028014,0.001,2942.7,2942.3,1.74158701]
[1766551028309,1.0212919,2943.0,2942.4,1.7076]
[1766551028485,0.001,2943.0,2942.6,1.7076]
[1766551028899,3.39890642,2943.0,2942.6,1.7076]
[1766551029707,3.39890642,2943.0,2942.7,0.03398239]
[1766551030216,0.001,2943.0,2942.6,1.7076]
[1766551030416,0.001,2943.0,2942.7,0.03398239]
[1766551030710,0.001,2943.1,2942.7,1.74158239]
[1766551030883,0.001,2943.1,2942.8,1.7076]
[1766551031080,0.001,2943.1,2942.9,0.03398008]
[1766551031740,0.001,2943.3,2942.9,1.74158008]
[1766551032226,0.001,2943.5,2943.0,1.69740563]
[1766551032414,4.28594363,2943.9,2943.2,1.7076]
[1766551032415,3.39801785,2943.8,2943.2,1.7076]
[1766551032617,3.39801785,2943.8,2943.1,0.20711634]
[1766551032618,0.001,2943.8,2943.4,1.7076]
[1766551032798,3.39800584,2943.8,2943.4,1.7076]
[1766551032993,0.001,2943.8,2943.1,0.17313857]
[1766551033195,0.001,2943.8,2943.2,1.3349]
[1766551034714,1.5951,2944.7,2943.3,0.03397546]
[1766551034902,4.990147,2944.6,2943.5,4.9957421]
[1766551035105,4.990147,2944.6,2943.6,0.033972]
[1766551035106,4.97995748,2944.6,2943.6,0.033972]
[1766551035305,4.97995748,2944.6,2943.4,5.17540153]
[1766551035493,4.97995748,2944.6,2943.5,3.91475816]
[1766551035727,4.97995748,2944.6,2943.5,0.51754015]
[1766551035919,4.97995748,2944.6,2943.5,3.91484007]
[1766551036325,4.97995748,2944.6,2943.6,3.39719069]
[1766551036531,0.001,2944.5,2943.6,3.39719069]
[1766551036826,0.001,2944.5,2943.7,0.73120272]
[1766551037120,0.001,2944.5,2943.8,0.889]
[1766551038025,0.001,2944.5,2943.9,0.03396854]
[1766551038221,1.5941,2944.6,2943.9,0.03396854]
[1766551039019,1.5941,2944.6,2943.9,1.0536085]
[1766551039523,4.99016709,2944.6,2943.9,1.0536085]
[1766551039730,0.49911671,2944.5,2943.9,1.0536085]
[1766551040026,0.49911671,2944.5,2943.9,1.01963996]
[1766551040328,0.49911671,2944.5,2944.0,0.889]
[1766551040734,0.49911671,2944.5,2944.1,0.03396623]
[1766551041298,1.5941,2944.6,2944.1,0.03396623]
[1766551042501,3.39693194,2944.7,2944.1,0.03396623]
[1766551042502,0.001,2944.7,2944.1,0.03396623]
[1766551042697,4.9898419,2944.9,2944.1,0.03396623]
[1766551042903,3.39561943,2945.0,2944.1,1.05355767]
[1766551043133,3.39561943,2945.0,2944.1,4.45017151]
[1766551043429,0.001,2944.6,2944.1,5.32377369]
[1766551043932,0.001,2945.1,2944.1,4.30418225]
[1766551044102,0.001,2945.1,2944.3,3.39639303]
[1766551044301,0.001,2945.1,2944.4,0.92296277]
[1766551048350,0.001,2945.1,2944.4,4.31918863]
[1766551049720,4.99024828,2945.4,2944.4,4.31918863]
[1766551050935,0.001,2945.1,2944.4,0.92296277]
[1766551051257,0.001,2945.1,2944.5,0.19424399]
[1766551051627,4.99024828,2945.4,2944.6,0.03396047]
[1766551051954,0.001,2945.4,2944.6,0.03396047]
[1766551052151,3.39612797,2945.4,2944.5,0.19424399]
[1766551052846,0.001,2945.4,2944.5,3.59035487]
[1766551053045,0.001,2945.4,2944.6,1.80690775]
[1766551053635,2.0451,2945.4,2944.6,1.80690775]
[1766551054359,2.0451,2945.4,2944.7,0.888]
[1766551054932,3.39523987,2945.3,2944.7,0.888]
[1766551055657,0.001,2945.4,2944.7,4.28392844]
[1766551055859,2.271,2945.7,2944.8,0.60908362]
[1766551056053,5.66580482,2945.7,2944.8,1.62830442]
[1766551056370,2.27,2945.6,2944.8,1.62830442]
[1766551056867,0.001,2945.7,2944.8,5.02409808]
[1766551057630,6.78917498,2946.3,2944.8,8.41991443]
[1766551057856,2.27,2946.2,2944.9,2.34213314]
[1766551058289,2.27,2946.2,2944.9,2.30817613]
[1766551058430,2.27,2946.2,2944.9,2.34213314]
[1766551058743,2.108,2946.2,2944.9,2.34213314]
[1766551058944,5.50231042,2946.2,2945.0,6.79117146]
[1766551059133,5.50231042,2946.2,2945.1,0.94728516]
[1766551059755,5.50231042,2946.2,2945.1,0.91333046]
[1766551059952,5.50231042,2946.2,2945.2,1.01905116]
[1766551060175,5.49212782,2946.2,2945.3,0.888]
[1766551060782,2.27,2946.1,2945.1,0.91333046]
[1766551060981,2.27,2945.9,2945.2,1.31889162]
[1766551064992,2.27,2945.9,2945.2,4.71423982]
[1766551065897,2.27,2945.9,2945.2,1.31889162]
[1766551066066,2.271,2945.9,2945.2,1.31889162]
[1766551066564,5.66562886,2945.9,2945.3,0.888]
[1766551067186,2.27,2945.8,2945.2,0.43089162]
[1766551067376,2.27,2945.8,2944.9,3.39564988]
[1766551067590,2.27,2945.8,2945.0,0.888]
[1766551068278,2.27,2945.6,2944.8,0.60908362]
[1766551068466,2.27,2945.6,2944.9,0.888]
[1766551068905,2.27,2945.6,2944.6,3.3979778]
[1766551069108,2.27,2945.6,2944.7,0.888]
[1766551069267,2.27,2945.4,2944.6,0.002]
[1766551069468,2.27,2945.4,2944.7,0.888]
[1766551069669,2.27,2945.4,2944.8,0.888]
[1766551072371,2.27,2945.4,2944.9,0.03395701]
[1766551073773,2.27,2945.6,2944.9,0.03395701]
[1766551074498,0.001,2945.4,2944.9,0.03395701]
[1766551075202,0.001,2945.4,2945.0,0.888]
[1766551075381,0.001,2945.4,2945.1,0.0339547]
[1766551085694,2.27,2945.6,2945.1,0.0339547]
[1766551085894,3.39564624,2945.9,2945.1,0.46571727]
[1766551085895,2.6243,2945.9,2945.1,0.46571727]
[1766551086116,6.0188827,2945.9,2945.1,3.86116124]
[1766551086314,6.0188827,2945.9,2945.1,0.43176257]
[1766551086530,2.6233,2945.7,2945.1,0.43176257]
[1766551086735,2.6233,2945.5,2944.6,3.39794827]
[1766551087041,2.6233,2945.5,2944.8,0.888]
[1766551087234,2.6233,2945.5,2944.7,0.888]
[1766551087526,2.6233,2945.5,2944.7,4.28391287]
[1766551087730,2.6233,2945.5,2944.7,5.0523181]
[1766551089129,2.6233,2945.4,2944.7,5.0523181]
[1766551089627,2.6233,2945.4,2944.7,4.1643181]
[1766551089933,6.01810703,2945.7,2944.8,0.03395816]
[1766551090305,2.6233,2945.6,2944.8,0.03395816]
[1766551091329,2.6233,2945.6,2944.8,4.27817012]
[1766551091530,2.62194188,2945.6,2944.8,4.27817012]
[1766551092944,2.6233,2945.5,2944.8,0.88238907]
[1766551093140,2.6233,2945.5,2944.7,0.888]
[1766551093445,2.6233,2945.3,2944.7,0.888]
[1766551093617,2.6233,2945.3,2944.6,3.39798428]
[1766551093817,2.6233,2945.3,2944.6,4.28598428]
[1766551098442,2.6233,2945.3,2944.6,3.39798428]
[1766551098641,2.6233,2945.3,2944.7,0.67961396]
[1766551101066,2.6233,2945.3,2944.8,0.03395816]
[1766551103272,0.001,2945.4,2944.8,3.42970722]
[1766551103563,6.01797164,2945.8,2944.8,6.82552357]
[1766551103753,6.01797164,2945.8,2944.8,6.79156541]
[1766551104060,6.01797164,2945.8,2944.9,1.27937899]
[1766551105563,6.01797164,2945.8,2945.0,0.888]
[1766551105739,6.01797164,2945.8,2945.1,0.0339547]
[1766551107362,6.01797164,2945.8,2945.0,0.888]
[1766551107867,0.001,2945.6,2945.0,0.888]
[1766551108162,0.001,2945.6,2945.1,0.55290847]
[1766551108765,0.001,2945.6,2945.2,0.03395355]
[1766551109269,2.6233,2945.8,2945.2,0.03395355]
[1766551109637,2.6233,2945.8,2945.1,0.55290847]
[1766551109638,2.6233,2945.8,2945.1,3.94833997]
[1766551110964,3.1179,2945.7,2945.1,0.55290847]
[1766551111271,3.1179,2945.7,2945.1,0.888]
[1766551112375,3.1179,2945.7,2945.0,3.39553484]
[1766551112563,3.1179,2945.7,2945.0,4.28353484]
[1766551113072,3.1179,2945.7,2945.0,0.888]
[1766551114172,3.1179,2945.7,2945.0,4.2835584]
[1766551114378,3.1179,2945.7,2945.1,0.42835584]
[1766551116378,3.1189,2945.7,2945.1,0.42835584]
[1766551116777,3.1189,2945.7,2945.1,3.82381238]
[1766551117470,3.1189,2945.7,2945.1,0.42835584]
[1766551118389,3.39560157,2945.9,2945.1,0.42835584]
[1766551118581,6.58780157,2945.9,2945.1,0.42835584]
[1766551118755,3.1922,2945.8,2945.1,0.42835584]
[1766551124171,3.1932,2945.8,2945.1,0.42835584]
[1766551127977,3.1922,2945.7,2945.1,0.42835584]
[1766551128709,3.1922,2945.7,2945.1,3.82380832]
[1766551131413,3.1922,2945.7,2945.1,0.42835584]
[1766551131707,3.1922,2945.7,2945.0,0.888]
[1766551132008,3.1922,2945.7,2945.0,4.28558018]
[1766551132308,3.1932,2945.7,2945.0,4.28558018]
[1766551132609,3.1922,2945.5,2945.0,0.002]
[1766551133510,3.1922,2945.4,2945.0,0.002]
[1766551134713,3.39516748,2945.4,2945.0,0.002]
[1766551135019,3.1922,2945.3,2945.0,0.002]
[1766551136304,3.1922,2945.6,2945.0,0.002]
[1766551136509,0.001,2945.7,2945.0,0.002]
[1766551137025,0.001,2945.7,2945.0,0.92395585]
[1766551137246,0.001,2945.7,2945.1,0.77153579]
[1766551137431,0.001,2945.7,2945.0,0.89]
[1766551139123,0.001,2945.7,2945.0,4.28554037]
[1766551142050,0.001,2945.9,2945.0,7.6811261]
[1766551142455,6.67760985,2945.9,2945.0,4.28554037]
[1766551142655,6.67760985,2945.9,2945.1,0.42855404]
[1766551142656,3.282,2945.8,2945.1,0.42855404]
[1766551142856,3.282,2945.8,2945.0,0.89]
[1766551143062,3.282,2945.8,2945.0,0.002]
[1766551143964,3.282,2945.7,2945.0,0.002]
[1766551146863,3.283,2945.7,2945.0,0.002]
[1766551147481,6.67778053,2945.7,2945.0,0.002]
[1766551147778,6.67778053,2945.7,2945.0,0.43076476]
[1766551148350,3.282,2945.6,2945.0,0.43076476]
[1766551150173,3.282,2945.6,2945.0,3.8263295]
[1766551150379,3.282,2945.6,2945.0,0.43076476]
[1766551151783,3.282,2945.6,2945.0,0.002]
[1766551155244,1.01924158,2946.0,2945.0,0.002]
[1766551155467,3.283,2946.3,2945.2,4.98406695]
[1766551155673,3.283,2946.3,2945.3,0.888]
[1766551155878,3.283,2946.3,2945.4,0.5872067]
[1766551156458,3.283,2946.3,2945.5,1.01902346]
[1766551156847,0.001,2946.3,2945.6,3.39489407]
[1766551157467,0.001,2946.3,2945.6,6.78978814]
[1766551157673,0.001,2946.3,2945.7,0.78088116]
[1766551158386,3.283,2946.3,2945.7,0.78088116]
[1766551160155,3.283,2946.3,2945.7,4.17565929]
[1766551160570,3.283,2946.3,2945.7,0.78088116]
[1766551161243,3.283,2946.3,2945.6,3.39482466]
[1766551162376,0.001,2946.3,2945.6,3.39482466]
[1766551164784,3.282,2946.5,2945.6,3.39482466]
[1766551164964,3.39479159,2946.6,2945.6,3.39482466]
[1766551165582,3.39479159,2946.6,2945.7,0.92194778]
[1766551165767,3.39479159,2946.6,2945.7,1.35362502]
[1766551166079,0.001,2946.6,2945.8,3.39466358]
[1766551166283,0.001,2946.6,2945.9,0.03394548]
[1766551166876,3.282,2946.8,2945.9,0.03394548]
[1766551167390,0.001,2946.9,2945.8,6.78932716]
[1766551167592,3.283,2946.9,2945.9,0.81090044]
[1766551168584,6.67640814,2946.9,2946.0,3.39443312]
[1766551169088,3.283,2946.9,2946.1,0.03394317]
[1766551169690,3.283,2946.9,2946.1,0.888]
[1766551169984,3.283,2946.9,2946.2,0.76768662]
[1766551170185,6.67644333,2946.9,2946.2,0.76768662]
[1766551170384,3.39444333,2946.9,2946.2,0.76768662]
[1766551170582,3.282,2946.7,2945.8,1.01886081]
[1766551170889,3.282,2946.7,2945.7,3.82637209]
[1766551171186,3.282,2946.7,2945.8,3.39465077]
[1766551171552,3.282,2946.7,2945.7,0.43167724]
[1766551171774,3.282,2946.7,2945.7,3.8263776]
[1766551172088,3.3921,2946.6,2945.7,3.8263776]
[1766551172462,3.3921,2946.6,2945.8,3.39465154]
[1766551172785,3.3921,2946.6,2945.9,0.03394548]
[1766551173356,3.3931,2946.9,2945.8,6.78931512]
[1766551173787,3.3931,2946.9,2945.9,0.03394548]
[1766551173971,3.3931,2946.9,2946.0,1.57032606]
[1766551174353,0.001,2946.9,2946.0,1.57032606]
[1766551174779,0.001,2946.9,2946.1,3.39431791]
[1766551175380,3.4192,2946.8,2946.0,0.68232606]
[1766551175568,3.4192,2946.8,2945.7,3.82643308]
[1766551175865,3.4192,2946.8,2945.9,3.39446611]
[1766551177409,3.4192,2946.7,2945.9,3.39446611]
[1766551180393,3.4192,2946.6,2945.9,3.39446611]
[1766551180779,3.4202,2946.9,2945.9,3.39446611]
[1766551180983,3.4202,2946.9,2946.0,0.42824661]
[1766551181184,3.4202,2946.9,2946.1,3.39431791]
[1766551182299,3.4202,2946.9,2946.2,0.03394202]
[1766551183304,3.4202,2946.9,2946.1,3.39431791]
[1766551183477,3.4202,2946.9,2946.2,0.7216997]
[1766551184770,3.4202,2946.9,2946.2,4.11586169]
[1766551185296,6.81361551,2946.9,2946.2,0.7216997]
[1766551185494,3.4202,2946.9,2946.2,4.11588414]
[1766551185716,3.4202,2946.9,2946.3,0.41158841]
[1766551186699,3.4202,2946.9,2946.4,0.03393972]
[1766551187798,0.001,2946.9,2946.4,0.03393972]
[1766551190206,0.001,2946.9,2946.4,3.42786577]
[1766551190373,3.4202,2947.0,2946.4,3.42786577]
[1766551190714,0.001,2947.0,2946.5,0.72335377]
[1766551192085,0.001,2947.0,2946.6,0.03393741]
[1766551192282,0.001,2947.0,2946.5,4.11716986]
[1766551192479,3.4192,2947.3,2946.5,4.11716986]
[1766551192893,0.001,2946.9,2946.5,4.11716986]
[1766551193094,0.001,2946.9,2946.6,0.75110624]
[1766551193393,0.001,2946.9,2946.7,0.03393626]
[1766551195191,0.001,2946.9,2946.4,3.39392748]
[1766551195398,0.001,2946.9,2946.3,1.29958841]
[1766551195814,0.001,2946.9,2946.4,3.39395071]
[1766551196102,0.001,2946.9,2946.5,0.46935391]
[1766551196971,3.4202,2946.9,2946.5,0.46935391]
[1766551199215,3.4202,2946.9,2946.3,1.29958841]
[1766551199397,3.4202,2946.9,2946.3,4.69367573]
[1766551199794,4.3062,2947.2,2946.5,3.39385265]
[1766551200007,3.4192,2947.4,2946.5,3.39385265]
[1766551200220,3.4192,2947.3,2946.4,3.39395894]
[1766551200410,3.4192,2947.3,2946.5,0.96733926]
[1766551200618,3.4192,2947.3,2946.4,4.28195894]
[1766551202327,3.6124,2947.2,2946.4,4.28195894]
[1766551202516,3.6124,2947.2,2946.4,7.67593124]
[1766551202697,3.6124,2947.4,2946.4,12.65577653]
[1766551202893,3.6124,2947.4,2946.5,0.03393857]
[1766551203097,3.6124,2947.4,2946.6,1.26897151]
[1766551203630,3.6124,2947.4,2946.7,0.03393626]
[1766551204797,3.6124,2947.4,2946.7,3.39362344]
[1766551204998,3.6124,2947.4,2946.8,0.03393511]
[1766551205404,3.6124,2947.4,2946.7,3.39362344]
[1766551205630,3.6124,2947.4,2946.8,0.80563222]
[1766551206214,3.6124,2947.4,2946.9,3.39339645]
[1766551206415,0.001,2947.5,2946.9,3.39339645]
[1766551207502,0.001,2947.4,2946.9,3.39339645]
[1766551207903,0.887,2947.8,2947.0,0.03393281]
[1766551208134,3.6124,2947.9,2947.1,0.84071745]
[1766551208341,3.39303248,2948.1,2947.2,3.39300307]
[1766551208552,3.6124,2948.0,2947.2,3.39300307]
[1766551209499,3.6124,2947.9,2947.1,0.84071745]
[1766551209706,3.6124,2948.0,2947.2,0.03393051]
[1766551209921,3.6124,2948.0,2947.2,3.42696228]
[1766551210754,3.6124,2948.0,2947.2,3.39303177]
[1766551211257,3.6124,2948.0,2947.3,0.03392935]
[1766551211422,3.6124,2948.0,2947.4,0.34269611]
[1766551211748,3.6124,2948.0,2947.5,0.03392705]
[1766551212254,0.001,2948.1,2947.5,0.03392705]
[1766551213434,3.6134,2948.1,2947.4,0.34269611]
[1766551213636,3.6134,2948.1,2947.3,0.888]
[1766551213830,3.6134,2948.1,2947.1,1.01838697]
[1766551214037,3.6134,2948.1,2947.3,3.39292365]
[1766551214261,3.6134,2948.1,2947.2,4.28096996]
[1766551215364,3.6134,2948.2,2947.3,0.03392935]
[1766551215561,3.6134,2948.2,2947.4,0.43148993]
[1766551216081,3.6134,2948.2,2947.2,0.888]
[1766551216259,0.001,2948.1,2947.2,4.28104587]
[1766551217068,3.6134,2948.1,2947.2,4.28104587]
[1766551217965,3.6134,2948.1,2947.2,7.6740969]
[1766551218337,3.6134,2948.1,2947.2,4.28104587]
[1766551218666,7.00542633,2948.1,2947.3,1.36724177]
[1766551219339,3.39302633,2948.1,2947.3,1.36724177]
[1766551220065,7.00542633,2948.1,2947.3,1.36724177]
[1766551220675,7.00542633,2948.1,2947.3,4.76016332]
[1766551221070,3.6134,2948.1,2947.3,4.76016332]
[1766551221369,3.6134,2948.1,2947.4,0.65078511]
[1766551221567,0.001,2948.1,2947.4,0.65078511]
[1766551222248,0.001,2948.1,2947.5,0.03392705]
[1766551223077,0.887,2948.5,2947.7,4.97984529]
[1766551223265,0.887,2948.5,2947.8,0.49798453]
[1766551223600,3.6124,2948.4,2947.8,0.49798453]
[1766551223766,3.6124,2948.4,2947.6,0.888]
[1766551223966,4.97984529,2948.2,2947.4,4.04353786]
[1766551224169,3.6124,2948.1,2947.4,0.65078511]
[1766551224368,3.6124,2948.0,2947.2,1.01836277]
[1766551224573,3.6124,2948.0,2947.1,3.39311384]
[1766551224748,3.6124,2948.0,2947.1,5.2994939]
[1766551224953,3.6124,2947.9,2947.1,5.2994939]
[1766551225182,3.6124,2947.9,2947.1,4.4114939]
[1766551225353,3.6124,2947.9,2947.2,0.78047727]
[1766551226154,0.001,2948.1,2947.2,0.78047727]
[1766551227403,0.001,2948.1,2947.3,3.3929359]
[1766551227602,3.6134,2948.1,2947.2,4.17349328]
[1766551227979,3.6134,2948.1,2947.2,0.78047727]
[1766551228305,3.6134,2948.1,2947.3,0.50616089]
[1766551229407,3.39310819,2948.1,2947.3,0.50616089]
[1766551229572,3.6124,2948.0,2947.3,0.50616089]
[1766551230310,3.6124,2947.8,2947.0,1.01841463]
[1766551230478,3.6124,2947.8,2946.9,4.28133326]
[1766551230678,3.6124,2947.8,2947.0,3.39327886]
[1766551231806,3.4474,2947.7,2946.9,4.28135689]
[1766551232106,3.4474,2947.7,2947.0,0.84804949]
[1766551232912,3.4474,2947.6,2947.0,0.85004949]
[1766551233580,3.4474,2947.6,2947.0,4.24332355]
[1766551234275,3.3922833,2947.9,2947.0,4.24332355]
[1766551234516,3.4474,2947.8,2947.1,0.76367089]
[1766551236233,3.4474,2947.8,2947.1,4.15683478]
[1766551236435,3.3930478,2948.1,2947.2,0.03393051]
[1766551236596,0.887,2948.1,2947.2,0.03393051]
[1766551236925,0.887,2948.1,2947.4,4.97984529]
[1766551236926,0.001,2948.1,2947.4,4.97984529]
[1766551237140,0.001,2948.1,2947.5,0.53191158]
[1766551238319,0.001,2948.1,2947.5,0.49798453]
[1766551238492,0.001,2948.1,2947.5,0.53191158]
[1766551238821,0.001,2948.2,2947.5,3.92460735]
[1766551239027,3.4474,2948.5,2947.6,5.86784529]
[1766551239212,3.4474,2948.5,2947.7,0.97924526]
[1766551239422,3.4474,2948.8,2947.9,3.39224532]
[1766551239606,3.4474,2948.8,2948.0,0.0339213]
[1766551239809,6.83865234,2948.8,2948.0,0.0339213]
[1766551240208,6.82847526,2948.8,2948.0,0.0339213]
[1766551240407,6.82847526,2948.8,2948.0,0.83958293]
[1766551240919,6.82847526,2948.8,2947.9,3.39224532]
[1766551241096,6.82847526,2948.8,2947.8,3.39230872]
[1766551241299,3.4474,2948.7,2947.7,0.97924526]
[1766551241605,3.4474,2948.6,2947.8,3.39235989]
[1766551242530,0.001,2948.2,2947.8,3.39235989]
[1766551242829,3.4474,2948.6,2947.9,0.8001515]
[1766551243031,3.39111057,2948.9,2948.0,0.888]
[1766551243208,3.4119,2948.8,2948.0,0.888]
[1766551244513,3.4119,2948.8,2947.9,4.15836101]
[1766551244734,6.80312386,2948.8,2948.0,0.888]
[1766551244936,3.4119,2948.7,2948.1,0.5046361]
[1766551245231,3.40172327,2948.7,2948.1,0.5046361]
[1766551248128,3.40172327,2948.7,2948.2,0.033919]
[1766551248530,3.4119,2948.6,2948.1,0.5046361]
[1766551248732,3.4119,2948.6,2947.6,1.01818996]